bitfinex/quotes_SOLUSD_20250721
["timestamp","ask_amount","ask_price","bid_price","bid_amount"]
[1753091832261,16.56578808,191.43,191.42,0.03]
[1753091832572,15.89578808,191.43,191.42,0.03]
[1753091833047,16.56578808,191.43,191.42,0.03]
[1753091833242,10.0,191.43,191.42,0.03]
[1753091833439,15.89578808,191.43,191.42,0.03]
[1753091833655,21.78962969,191.43,191.42,0.03]
[1753091833846,49.4283,191.43,191.42,0.03]
[1753091834048,15.89578808,191.43,191.42,0.03]
[1753091834970,16.56578808,191.43,191.42,0.03]
[1753091835341,15.89578808,191.43,191.42,0.03]
[1753091835568,10.0,191.47,191.42,32.63578808]
[1753091835763,10.0,191.44,191.43,16.78468397]
[1753091835972,10.0,191.46,191.45,26.0]
[1753091836269,10.0,191.46,191.45,43.49468397]
[1753091836843,10.0,191.46,191.44,1.5409]
[1753091837069,10.0,191.44,191.42,5.96392318]
[1753091837366,10.0,191.43,191.42,22.03860715]
[1753091837755,10.0,191.43,191.42,22.74860715]
[1753091843674,10.0,191.44,191.43,16.78468397]
[1753091844067,10.0,191.44,191.43,17.49468397]
[1753091846281,10.0,191.44,191.43,22.71852558]
[1753091847187,10.0,191.44,191.43,170.71852557]
[1753091847366,10.0,191.44,191.43,153.9338416]
[1753091847760,10.0,191.45,191.44,16.78468397]
[1753091847961,10.0,191.48,191.44,60.55047205]
[1753091848155,5.89578808,191.5,191.44,60.55047205]
[1753091848156,10.0,191.46,191.45,5.93329589]
[1753091848475,10.0,191.48,191.45,59.87797986]
[1753091848866,10.0,191.46,191.45,59.87797986]
[1753091849882,10.0,191.48,191.45,59.87797986]
[1753091850466,10.0,191.46,191.45,59.87797986]
[1753091850668,10.0,191.48,191.45,59.87797986]
[1753091850863,10.0,191.46,191.45,59.16797986]
[1753091851068,15.89578808,191.48,191.45,207.16797985]
[1753091851260,10.0,191.46,191.45,207.16797985]
[1753091851777,10.0,191.48,191.45,207.87797985]
[1753091851974,10.0,191.46,191.45,207.87797985]
[1753091852558,10.0,191.48,191.45,207.87797985]
[1753091852881,10.0,191.47,191.46,5.87302308]
[1753091853270,10.0,191.47,191.45,207.16790616]
[1753091853578,10.0,191.46,191.45,207.16790616]
[1753091853977,10.0,191.46,191.45,207.81790616]
[1753091854176,10.0,191.47,191.45,207.81790616]
[1753091854571,10.0,191.46,191.45,207.81790616]
[1753091855270,10.0,191.48,191.45,207.81790616]
[1753091855470,10.0,191.48,191.46,0.65]
[1753091855768,10.0,191.48,191.47,37.16]
[1753091857383,10.0,191.49,191.48,16.78468397]
[1753091857687,10.0,191.49,191.48,54.59468397]
[1753091859564,10.0,191.49,191.48,59.81716151]
[1753091859962,10.0,191.49,191.45,148.64999999]
[1753091860267,10.0,191.48,191.46,53.94468397]
[1753091860461,10.0,191.48,191.46,54.59468397]
[1753091860685,10.0,191.47,191.46,37.16]
[1753091861012,10.0,191.48,191.46,37.16]
[1753091861175,10.0,191.46,191.43,16.78468397]
[1753091861381,10.0,191.44,191.43,37.16]
[1753091861690,10.0,191.44,191.43,59.81852558]
[1753091862101,10.0,191.45,191.43,59.81852558]
[1753091862397,10.0,191.44,191.43,59.16852558]
[1753091862568,10.0,191.46,191.43,59.16852558]
[1753091862767,10.0,191.44,191.43,59.16852558]
[1753091862962,10.0,191.44,191.43,59.81852558]
[1753091863177,10.0,191.45,191.44,16.78468397]
[1753091863372,10.0,191.45,191.44,17.43468397]
[1753091863888,10.0,191.45,191.44,22.65825271]
[1753091864185,10.0,191.45,191.44,22.03158813]
[1753091866089,10.0,191.46,191.44,22.03158813]
[1753091866278,10.0,191.46,191.45,37.14]
[1753091867882,10.65,191.46,191.45,37.14]
[1753091868284,10.65,191.46,191.43,5.22380717]
[1753091868484,10.65,191.45,191.43,5.22380717]
[1753091868683,10.0,191.44,191.43,22.00849114]
[1753091868885,10.0,191.44,191.43,59.14849114]
[1753091869975,10.0,191.45,191.44,0.03]
[1753091870371,10.06,191.46,191.44,37.17]
[1753091870572,10.0,191.45,191.44,37.17]
[1753091871294,10.65,191.45,191.44,37.17]
[1753091871518,10.65,191.45,191.44,0.03]
[1753091871796,10.0,191.45,191.44,37.17]
[1753091872005,10.0,191.45,191.44,59.82825271]
[1753091872183,10.06,191.46,191.44,65.72404079]
[1753091872392,10.0,191.45,191.44,65.07404079]
[1753091872690,10.06,191.46,191.44,65.07404079]
[1753091872868,10.0,191.45,191.44,65.07404079]
[1753091873281,10.06,191.46,191.44,37.17]
[1753091873472,10.65,191.45,191.44,37.17]
[1753091873668,10.0,191.45,191.44,37.17]
[1753091876674,10.0,191.45,191.44,37.82]
[1753091876993,10.0,191.45,191.44,37.17]
[1753091877888,10.65,191.45,191.44,63.17]
[1753091878095,10.65,191.45,191.44,26.03]
[1753091878287,10.65,191.45,191.44,63.17]
[1753091878486,10.0,191.45,191.44,63.17]
[1753091878800,10.0,191.45,191.44,69.04356874]
[1753091879592,10.0,191.45,191.44,91.72404079]
[1753091880005,0.06,191.46,191.45,16.78468397]
[1753091880207,10.06,191.46,191.45,16.78468397]
[1753091880513,10.06,191.46,191.45,22.65797986]
[1753091880889,10.06,191.46,191.45,22.00797986]
[1753091882085,10.06,191.46,191.45,22.65797986]
[1753091882493,0.06,191.46,191.45,22.65797986]
[1753091882693,0.06,191.46,191.45,170.65797985]
[1753091882903,10.06,191.46,191.45,170.65797985]
[1753091883207,10.06,191.46,191.45,170.71797985]
[1753091884495,0.06,191.46,191.45,170.71797985]
[1753091884703,0.06,191.46,191.45,176.61376793]
[1753091885597,0.06,191.46,191.45,213.75376793]
[1753091885793,0.06,191.46,191.45,176.61376793]
[1753091885997,0.06,191.46,191.45,213.75376793]
[1753091886198,0.06,191.46,191.45,176.61376793]
[1753091886914,0.06,191.46,191.45,213.75376793]
[1753091887590,0.06,191.46,191.45,213.73376793]
[1753091897711,0.06,191.46,191.45,219.84845398]
[1753091898009,0.06,191.5,191.48,26.0]
[1753091898212,10.06,191.5,191.49,43.01578808]
[1753091898524,10.06,191.5,191.49,37.12]
[1753091898722,0.06,191.5,191.49,48.23799289]
[1753091899024,0.06,191.5,191.49,48.94799289]
[1753091899901,0.06,191.5,191.49,65.73267686]
[1753091900807,0.06,191.5,191.49,70.94767686]
[1753091901007,0.06,191.53,191.52,16.78468397]
[1753091901216,0.06,191.53,191.52,214.96937684]
[1753091901554,0.06,191.53,191.52,215.67937684]
[1753091902523,0.06,191.53,191.52,221.79406289]
[1753091902723,0.06,191.53,191.52,227.01544969]
[1753091902928,0.06,191.57,191.56,42.78468397]
[1753091903226,0.06,191.57,191.56,233.78047203]
[1753091903601,0.06,191.57,191.56,234.49047203]
[1753091903908,0.06,191.57,191.56,233.78047203]
[1753091904324,0.06,191.57,191.56,234.49047203]
[1753091904825,0.06,191.57,191.56,239.71076854]
[1753091906233,0.06,191.57,191.56,239.00076854]
[1753091906410,0.06,191.57,191.56,239.71076854]
[1753091906610,0.06,191.57,191.56,246.89967335]
[1753091907631,0.76,191.57,191.56,181.18890479]
[1753091907852,10.0,191.54,191.52,147.99999998]
[1753091908005,10.0,191.54,191.53,63.08]
[1753091908203,10.7,191.54,191.53,63.08]
[1753091908933,0.7,191.54,191.53,63.08]
[1753091909112,10.7,191.54,191.53,63.08]
[1753091909635,0.7,191.54,191.53,63.08]
[1753091909826,10.7,191.54,191.53,63.08]
[1753091910227,10.7,191.54,191.47,147.99999998]
[1753091910440,10.7,191.54,191.45,11.11908397]
[1753091910441,10.0,191.5,191.45,11.11908397]
[1753091910608,10.7,191.49,191.46,37.08]
[1753091910809,10.0,191.49,191.48,22.68047205]
[1753091911103,10.0,191.49,191.48,85.76047205]
[1753091911306,10.0,191.51,191.5,16.78468397]
[1753091911514,10.0,191.51,191.5,59.76047205]
[1753091911730,10.0,191.52,191.5,53.86468397]
[1753091911930,10.0,191.51,191.5,53.86468397]
[1753091912307,10.7,191.51,191.5,37.08]
[1753091914436,0.7,191.51,191.5,37.08]
[1753091914635,10.7,191.51,191.5,37.08]
[1753091915021,10.0,191.49,191.48,48.0071035]
[1753091915331,10.71,191.49,191.48,85.0871035]
[1753091915536,10.0,191.49,191.48,85.0871035]
[1753091915737,0.71,191.51,191.48,85.0871035]
[1753091915924,10.0,191.49,191.48,85.0871035]
[1753091916516,0.71,191.5,191.48,85.0871035]
[1753091916732,10.0,191.49,191.48,85.0871035]
[1753091917716,10.0,191.49,191.48,68.30247754]
[1753091917920,10.71,191.51,191.48,85.08716151]
[1753091918113,10.0,191.51,191.49,23.36047205]
[1753091918314,10.0,191.52,191.5,37.08]
[1753091918612,10.71,191.52,191.5,37.08]
[1753091918808,10.71,191.52,191.51,16.78468397]
[1753091918809,10.0,191.52,191.51,16.78468397]
[1753091919018,5.27941604,191.6,191.51,22.68047205]
[1753091919019,10.0,191.54,191.51,22.68047205]
[1753091919221,10.0,191.54,191.52,37.08]
[1753091919632,10.0,191.54,191.53,5.22111418]
[1753091919830,10.0,191.55,191.54,16.78468397]
[1753091920029,10.06,191.57,191.56,42.78468397]
[1753091920217,0.06,191.57,191.56,85.76047205]
[1753091920413,0.06,191.57,191.56,86.44047205]
[1753091921833,0.06,191.57,191.56,54.58076856]
[1753091922025,0.06,191.57,191.56,91.66076856]
[1753091922430,0.06,191.57,191.56,239.66076854]
[1753091922813,0.06,191.57,191.56,246.12212125]
[1753091923017,0.06,191.57,191.56,253.37396181]
[1753091923218,0.06,191.57,191.56,258.58896181]
[1753091923418,0.06,191.57,191.56,253.37396181]
[1753091924221,0.06,191.6,191.59,42.78468397]
[1753091924427,0.06,191.6,191.59,85.76047205]
[1753091924737,0.06,191.6,191.59,100.46422087]
[1753091925123,0.1,191.61,191.6,16.78468397]
[1753091925337,0.1,191.61,191.6,185.38422085]
[1753091926237,0.1,191.61,191.6,190.60342753]
[1753091926745,16.78468397,191.8,191.68,10.0]
[1753091926942,5.89578808,191.7,191.69,37.06]
[1753091927145,5.89578808,191.7,191.64,10.0]
[1753091927317,0.1,191.77,191.65,10.0]
[1753091927525,5.89578808,191.7,191.64,10.0]
[1753091927723,5.89578808,191.7,191.65,10.0]
[1753091928025,5.89578808,191.66,191.64,10.0]
[1753091928440,5.89578808,191.66,191.65,10.0]
[1753091928621,16.78468397,191.75,191.65,10.0]
[1753091928824,26.0,191.73,191.66,10.0]
[1753091929051,0.71,191.72,191.66,10.0]
[1753091929425,0.71,191.72,191.67,37.06]
[1753091929626,5.89578808,191.68,191.67,37.06]
[1753091929851,6.60578808,191.68,191.67,37.06]
[1753091930042,11.82281646,191.68,191.67,37.06]
[1753091930844,6.60578808,191.68,191.67,37.06]
[1753091931349,0.71,191.68,191.67,37.06]
[1753091931643,6.60578808,191.68,191.67,37.06]
[1753091931851,6.60578808,191.68,191.67,47.06]
[1753091933044,6.60578808,191.68,191.67,10.0]
[1753091933342,6.60578808,191.68,191.67,47.06]
[1753091933848,5.89578808,191.68,191.67,37.06]
[1753091934146,5.89578808,191.68,191.67,47.06]
[1753091934353,5.89578808,191.68,191.67,37.04]
[1753091934732,6.86177739,191.71,191.69,10.0]
[1753091934928,5.89578808,191.7,191.68,10.0]
[1753091935138,5.89578808,191.69,191.68,47.04]
[1753091935449,6.60578808,191.69,191.68,47.04]
[1753091936352,6.60578808,191.69,191.68,10.0]
[1753091936554,6.60578808,191.69,191.68,47.04]
[1753091937827,11.8225443,191.69,191.67,10.0]
[1753091938036,6.60578808,191.68,191.66,37.04]
[1753091938239,6.60578808,191.67,191.65,47.07]
[1753091938444,6.60578808,191.66,191.65,10.03]
[1753091938635,6.60578808,191.66,191.65,47.07]
[1753091939649,5.89578808,191.66,191.65,47.07]
[1753091939835,5.89578808,191.66,191.65,10.03]
[1753091940035,5.89578808,191.66,191.65,47.07]
[1753091941250,2.3555,191.71,191.68,10.0]
[1753091941450,5.89578808,191.69,191.68,10.0]
[1753091941651,5.89578808,191.69,191.67,37.04]
[1753091941848,0.71,191.7,191.68,10.0]
[1753091942834,5.89578808,191.69,191.68,10.0]
[1753091944549,2.3555,191.71,191.68,10.0]
[1753091944758,2.3555,191.71,191.69,37.04]
[1753091944957,6.60578808,191.7,191.69,47.04]
[1753091945452,5.89578808,191.73,191.71,10.0]
[1753091945654,5.89578808,191.73,191.72,37.02]
[1753091945845,5.89578808,191.73,191.72,47.02]
[1753091946046,5.89578808,191.73,191.72,37.02]
[1753091946358,5.89578808,191.73,191.72,47.02]
[1753091947461,5.89578808,191.73,191.72,52.23593991]
[1753091947869,5.89578808,191.73,191.72,47.02]
[1753091948343,0.71,191.75,191.74,10.0]
[1753091948543,5.89578808,191.75,191.72,52.23591111]
[1753091948846,1.7104,191.77,191.72,52.23591111]
[1753091948847,5.89578808,191.73,191.72,52.23591111]
[1753091949638,0.71,191.74,191.72,52.23591111]
[1753091949832,5.89578808,191.73,191.72,52.23591111]
[1753091950257,5.89578808,191.73,191.72,47.02]
[1753091950461,5.89578808,191.73,191.72,10.0]
[1753091952374,5.89578808,191.74,191.72,15.21593991]
[1753091952557,1.7104,191.77,191.73,47.02]
[1753091952757,5.89578808,191.75,191.74,10.0]
[1753091953974,0.1,191.77,191.74,15.21530664]
[1753091954189,5.89578808,191.76,191.75,47.02]
[1753091954866,5.89578808,191.76,191.75,10.0]
[1753091955076,5.89578808,191.76,191.75,37.02]
[1753091955371,5.89578808,191.76,191.75,47.02]
[1753091956366,0.1,191.77,191.76,10.0]
[1753091956572,5.99578808,191.77,191.75,47.02]
[1753091956751,5.99578808,191.77,191.75,10.0]
[1753091956958,5.89578808,191.76,191.75,10.0]
[1753091957160,5.99578808,191.77,191.76,10.0]
[1753091957756,0.1,191.77,191.76,10.0]
[1753091957961,5.99578808,191.77,191.76,10.0]
[1753091958262,0.1,191.77,191.76,37.0]
[1753091958459,0.1,191.77,191.76,47.0]
[1753091958660,0.1,191.77,191.75,10.0]
[1753091958973,0.1,191.77,191.76,37.0]
[1753091959151,0.1,191.77,191.76,10.0]
[1753091959354,0.1,191.77,191.76,47.0]
[1753091959551,0.1,191.77,191.76,37.0]
[1753091959750,0.1,191.77,191.76,47.0]
[1753091960251,0.1,191.77,191.76,37.0]
[1753091960453,0.1,191.77,191.76,47.0]
[1753091960854,0.1,191.77,191.76,37.0]
[1753091961060,0.1,191.77,191.76,52.21485189]
[1753091961268,0.1,191.77,191.76,52.87485189]
[1753091961958,0.1,191.77,191.76,47.66]
[1753091962153,0.1,191.77,191.76,52.87485189]
[1753091962673,0.1,191.77,191.76,10.0]
[1753091962859,0.1,191.77,191.76,47.0]
[1753091963259,0.1,191.77,191.76,47.66]
[1753091964182,0.81,191.77,191.75,10.0]
[1753091964386,0.81,191.77,191.76,10.0]
[1753091964387,0.1,191.77,191.76,10.0]
[1753091964681,11.21036804,191.77,191.76,10.0]
[1753091964980,11.92036804,191.77,191.76,10.0]
[1753091965182,5.99578808,191.77,191.76,10.0]
[1753091966073,5.99578808,191.77,191.62,10.0]
[1753091966074,11.92036804,191.77,191.73,10.0]
[1753091966259,5.89578808,191.74,191.72,10.0]
[1753091966461,0.71,191.76,191.73,10.0]
[1753091966666,5.31457996,191.77,191.75,10.0]
[1753091966866,5.31457996,191.77,191.74,10.0]
[1753091967256,0.71,191.76,191.73,10.0]
[1753091967462,0.71,191.76,191.71,10.0]
[1753091967674,5.89578808,191.72,191.71,10.0]
[1753091968080,0.1,191.77,191.71,47.64]
[1753091968081,5.21514089,191.75,191.71,47.64]
[1753091968390,5.89578808,191.73,191.71,47.64]
[1753091968584,5.89578808,191.73,191.72,10.0]
[1753091968962,5.89578808,191.74,191.72,10.66]
[1753091969274,5.89578808,191.75,191.74,10.0]
[1753091969858,6.60578808,191.75,191.73,46.98]
[1753091970058,5.21516141,191.75,191.74,10.0]
[1753091970577,5.21516141,191.75,191.73,10.0]
[1753091970775,0.71,191.74,191.73,10.0]
[1753091971169,6.60578808,191.74,191.73,10.0]
[1753091971984,5.89578808,191.74,191.73,10.0]
[1753091972477,0.1,191.77,191.73,10.0]
[1753091972665,0.71,191.76,191.74,10.0]
[1753091973064,5.31465196,191.77,191.72,10.0]
[1753091973271,5.31458793,191.77,191.72,47.67]
[1753091973473,6.01458793,191.77,191.72,47.67]
[1753091973673,6.01458793,191.77,191.74,10.0]
[1753091973870,5.89578808,191.75,191.74,10.0]
[1753091974266,5.89578808,191.76,191.74,10.0]
[1753091974474,5.89578808,191.75,191.74,10.0]
[1753091975281,6.59578808,191.75,191.7,10.0]
[1753091975483,1.582,191.76,191.7,10.0]
[1753091975484,5.89578808,191.71,191.7,10.0]
[1753091975690,6.59578808,191.71,191.7,10.0]
[1753091975887,5.91621198,191.71,191.7,10.0]
[1753091976085,5.89578808,191.71,191.7,10.0]
[1753091976279,5.21612976,191.72,191.7,10.0]
[1753091976619,5.89578808,191.71,191.7,10.0]
[1753091977183,6.59578808,191.71,191.69,10.0]
[1753091977387,5.21612976,191.72,191.68,0.03]
[1753091977388,6.59578808,191.7,191.68,0.03]
[1753091977694,5.89578808,191.69,191.68,0.03]
[1753091977984,11.8125443,191.69,191.68,0.03]
[1753091978989,13.4597443,191.69,191.68,0.03]
[1753091984789,7.56395622,191.69,191.68,0.03]
[1753091985095,13.4597443,191.69,191.68,0.03]
[1753091986189,26.50163485,191.69,191.65,0.03]
[1753091986392,22.68047205,191.66,191.61,0.03]
[1753091986594,5.89578808,191.62,191.61,0.03]
[1753091987404,11.11445001,191.62,191.61,0.03]
[1753091988605,5.89578808,191.62,191.61,0.72]
[1753091988775,5.21784503,191.65,191.61,10.72]
[1753091988975,5.21784503,191.65,191.61,10.03]
[1753091989205,5.21762068,191.66,191.62,10.69]
[1753091989501,5.89578808,191.63,191.62,10.69]
[1753091989703,5.89578808,191.64,191.62,10.69]
[1753091989907,5.89578808,191.65,191.63,0.69]
[1753091990073,5.89578808,191.66,191.64,10.0]
[1753091990407,5.21726182,191.68,191.65,10.0]
[1753091990699,5.91726182,191.68,191.66,10.0]
[1753091991316,5.21726182,191.68,191.66,10.0]
[1753091991652,5.89578808,191.67,191.66,10.69]
[1753091992400,5.89578808,191.67,191.66,0.69]
[1753091992785,5.21726182,191.68,191.66,10.69]
[1753091992986,5.89578808,191.67,191.66,0.69]
[1753091993191,5.89578808,191.67,191.66,10.69]
[1753091994408,11.11316561,191.67,191.64,10.0]
[1753091994705,5.89578808,191.65,191.63,10.69]
[1753091994906,5.89578808,191.64,191.63,10.69]
[1753091995275,5.21737753,191.67,191.63,10.69]
[1753091995488,5.21737753,191.67,191.65,10.0]
[1753091995889,11.11336086,191.66,191.63,10.0]
[1753091996084,5.89578808,191.64,191.63,10.0]
[1753091996290,5.21757278,191.66,191.63,10.0]
[1753091996493,5.89578808,191.64,191.63,10.0]
[1753091996692,5.21757278,191.66,191.63,10.69]
[1753091996882,5.89578808,191.64,191.63,10.0]
[1753091998292,5.89578808,191.64,191.63,10.69]
[1753091998493,5.89578808,191.64,191.62,10.0]
[1753091998699,5.89578808,191.64,191.63,10.0]
[1753091999597,5.89578808,191.64,191.62,10.69]
[1753091999803,5.21796126,191.65,191.63,10.0]
[1753092000404,5.21730056,191.67,191.64,0.69]
[1753092000709,5.21730056,191.67,191.64,10.69]
[1753092001019,5.21730056,191.67,191.65,10.69]
[1753092001320,5.21730056,191.67,191.64,10.0]
[1753092001484,0.7,191.69,191.64,10.0]
[1753092001485,18.25802867,191.7,191.65,0.69]
[1753092001688,0.7,191.69,191.65,10.0]
[1753092002298,5.89578808,191.66,191.65,10.69]
[1753092002792,5.89578808,191.66,191.63,10.0]
[1753092003011,5.89578808,191.65,191.64,10.0]
[1753092003328,5.89578808,191.65,191.64,0.7]
[1753092003497,5.95578808,191.65,191.63,10.0]
[1753092003697,5.89578808,191.64,191.63,10.7]
[1753092003905,5.89578808,191.64,191.63,8.09107748]
[1753092004629,5.89578808,191.64,191.63,7.39107748]
[1753092005417,5.89578808,191.64,191.63,8.09107748]
[1753092005624,5.89578808,191.64,191.63,7.39107748]
[1753092005803,11.11390538,191.64,191.63,7.39107748]
[1753092006005,5.89578808,191.64,191.63,7.39107748]
[1753092006602,5.89578808,191.64,191.63,8.09107748]
[1753092007095,5.89578808,191.64,191.63,7.39107748]
[1753092007320,0.67,191.64,191.61,0.03]
[1753092007499,5.89578808,191.62,191.61,0.73]
[1753092007898,11.11445001,191.62,191.61,0.03]
[1753092009400,11.78445001,191.62,191.61,0.03]
[1753092010499,11.11445001,191.62,191.61,0.03]
[1753092011309,11.11445001,191.62,191.61,0.73]
[1753092011925,11.11445001,191.62,191.61,0.03]
[1753092012103,5.89578808,191.62,191.61,0.03]
[1753092012505,5.89578808,191.62,191.61,0.73]
[1753092012706,0.06,191.65,191.61,0.73]
[1753092012923,5.95578808,191.65,191.63,7.39107748]
[1753092013120,5.95578808,191.65,191.64,0.7]
[1753092013424,5.95578808,191.65,191.64,8.09107748]
[1753092013626,0.06,191.65,191.64,8.09107748]
[1753092014210,0.06,191.65,191.64,13.30919478]
[1753092015131,0.06,191.65,191.64,30.09387875]
[1753092015315,0.06,191.65,191.64,35.98966683]
[1753092016035,0.06,191.65,191.64,44.20116683]
[1753092017233,0.06,191.65,191.64,81.16116683]
[1753092020830,1e-08,191.65,191.64,81.16116683]
[1753092021023,1e-08,191.65,191.64,87.81561449]
[1753092021224,0.06,191.69,191.67,26.0]
[1753092021532,0.06,191.69,191.68,67.03154953]
[1753092021929,0.06,191.69,191.68,67.73154953]
[1753092022132,0.06,191.69,191.68,78.16357791]
[1753092022314,1e-08,191.69,191.68,125.66989596]
[1753092022709,1e-08,191.69,191.68,82.81410788]
[1753092023033,1e-08,191.69,191.68,112.12747791]
[1753092023416,1e-08,191.69,191.68,43.86747791]
[1753092023629,1e-08,191.69,191.68,80.80747791]
[1753092024027,1e-08,191.69,191.68,106.80747791]
[1753092024537,1e-08,191.69,191.68,63.97168983]
[1753092024830,1e-08,191.69,191.68,56.09278983]
[1753092025031,1e-08,191.69,191.68,93.03278983]
[1753092026432,5.89578808,191.73,191.72,7.39107748]
[1753092026659,5.89578808,191.73,191.72,44.33107748]
[1753092026829,5.89578808,191.73,191.72,36.94]
[1753092027138,5.89578808,191.73,191.72,44.33107748]
[1753092027349,5.21489192,191.76,191.73,7.39107748]
[1753092027633,5.89578808,191.74,191.73,7.39107748]
[1753092027830,5.21489192,191.76,191.72,44.33107748]
[1753092027831,5.88489192,191.76,191.72,44.33107748]
[1753092028032,5.89578808,191.73,191.72,44.33107748]
[1753092028935,5.89578808,191.74,191.72,37.64]
[1753092029237,5.89578808,191.74,191.73,7.39107748]
[1753092030744,11.78118392,191.74,191.73,36.94]
[1753092031131,11.11118392,191.74,191.73,36.94]
[1753092031528,11.11118392,191.74,191.69,26.7]
[1753092031529,5.88539584,191.74,191.69,7.39107748]
[1753092031841,5.89578808,191.7,191.68,44.33107748]
[1753092032038,5.89578808,191.69,191.68,44.33107748]
[1753092032539,6.56578808,191.69,191.67,7.39107748]
[1753092032738,5.89578808,191.68,191.67,36.92]
[1753092033240,6.60578808,191.68,191.67,36.92]
[1753092033422,6.60578808,191.68,191.64,7.39107748]
[1753092033619,5.89578808,191.65,191.64,44.31107748]
[1753092033925,11.11363311,191.65,191.64,36.92]
[1753092034638,5.89578808,191.65,191.64,37.6]
[1753092034841,5.89578808,191.66,191.65,7.39107748]
[1753092035030,5.89578808,191.66,191.65,8.07107748]
[1753092035233,5.89578808,191.67,191.66,7.39107748]
[1753092035422,5.89578808,191.68,191.67,7.39107748]
[1753092035835,5.89578808,191.68,191.67,8.07107748]
[1753092036143,5.89578808,191.69,191.68,7.39107748]
[1753092036341,5.89578808,191.69,191.68,44.31107748]
[1753092036544,5.89578808,191.69,191.68,44.99107748]
[1753092036749,5.89578808,191.71,191.68,44.99107748]
[1753092036930,5.89578808,191.71,191.7,7.39107748]
[1753092037338,5.89578808,191.71,191.7,44.31107748]
[1753092037649,5.89578808,191.71,191.67,0.68]
[1753092037650,6.60578808,191.71,191.69,44.31107748]
[1753092038029,5.21648408,191.7,191.69,44.31107748]
[1753092038234,5.21648408,191.7,191.69,36.92]
[1753092038451,11.11227216,191.7,191.69,36.92]
[1753092038751,11.11227216,191.7,191.68,36.92]
[1753092038953,5.89578808,191.69,191.68,36.92]
[1753092039155,11.1125443,191.69,191.68,36.92]
[1753092039454,11.8225443,191.69,191.67,44.31107748]
[1753092039648,5.89578808,191.68,191.67,7.39107748]
[1753092039853,5.89578808,191.68,191.66,36.92]
[1753092040242,5.89578808,191.68,191.66,37.6]
[1753092040432,5.89578808,191.68,191.67,7.39107748]
[1753092041034,5.92566786,191.73,191.67,0.68]
[1753092041336,5.89578808,191.69,191.68,44.31107748]
[1753092041945,5.89578808,191.69,191.68,44.99107748]
[1753092042159,5.89578808,191.7,191.69,7.39107748]
[1753092042353,5.21519753,191.75,191.7,7.39107748]
[1753092042566,5.89578808,191.74,191.73,7.39107748]
[1753092042860,5.89578808,191.74,191.73,44.31107748]
[1753092043552,11.11118392,191.74,191.73,44.31107748]
[1753092043733,11.82118392,191.74,191.7,7.39107748]
[1753092044061,11.82118392,191.74,191.62,7.9977]
[1753092044062,5.89578808,191.71,191.68,36.92]
[1753092044260,18.25388546,191.74,191.67,44.31107748]
[1753092044261,5.89578808,191.69,191.67,44.31107748]
[1753092044570,5.89578808,191.68,191.67,44.31107748]
[1753092045368,5.89578808,191.71,191.69,7.39107748]
[1753092045537,5.21512385,191.75,191.7,36.92]
[1753092045738,5.89578808,191.71,191.7,36.92]
[1753092045949,5.89578808,191.72,191.7,37.6]
[1753092046159,5.21512385,191.75,191.7,37.6]
[1753092046160,5.89578808,191.74,191.71,0.68]
[1753092046333,5.89578808,191.74,191.72,44.99107748]
[1753092046738,5.27488806,191.76,191.72,44.99107748]
[1753092046942,5.89578808,191.74,191.73,7.39107748]
[1753092047364,5.89578808,191.75,191.73,8.07107748]